bitfinex/quotes_ETHUSD_20240702
["timestamp","ask_amount","ask_price","bid_price","bid_amount"]
[1719914507954,3.72215,3450.5,3449.9,0.05441011]
[1719914508278,0.54425764,3450.4,3450.0,2.0874]
[1719914508478,0.54425764,3450.3,3450.0,2.0874]
[1719914508662,0.54425938,3450.2,3450.0,2.0874]
[1719914508864,3.72215,3450.5,3450.1,0.05441011]
[1719914509167,0.91995544,3450.4,3450.1,0.05441011]
[1719914509483,0.54425927,3450.3,3450.1,0.05441011]
[1719914509688,0.54425927,3450.2,3450.1,0.05441011]
[1719914509882,0.54425927,3450.4,3450.1,0.05441011]
[1719914511259,3.44248927,3450.4,3449.8,2.89869]
[1719914511457,0.54425927,3450.3,3449.8,2.89869]
[1719914511674,0.54425927,3450.3,3449.9,0.054371]
[1719914512674,3.44257927,3450.3,3449.9,0.054371]
[1719914512993,3.44257927,3450.3,3449.7,2.0874]
[1719914512994,0.54425927,3450.2,3449.7,2.0874]
[1719914513198,0.54425927,3450.2,3450.0,0.05436541]
[1719914513499,0.54425927,3450.2,3450.1,0.05436541]
[1719914513667,0.54425927,3450.2,3449.7,2.0874]
[1719914513873,0.54425927,3450.2,3449.8,0.05436541]
[1719914514074,0.54425927,3450.2,3449.7,2.0874]
[1719914514277,0.54425927,3450.2,3449.8,0.05436541]
[1719914514602,0.54425927,3450.2,3449.7,4.98619]
[1719914515205,0.54425927,3450.2,3449.8,0.05436541]
[1719914515505,0.54425927,3450.2,3449.7,4.98619]
[1719914515874,0.54425927,3450.2,3449.8,0.05436541]
[1719914516100,3.44264927,3450.2,3449.7,4.98619]
[1719914516405,0.54425927,3450.1,3449.8,0.05436541]
[1719914516773,0.54425927,3450.1,3449.7,4.98619]
[1719914516968,0.54425927,3450.1,3449.9,0.05350347]
[1719914517284,0.54425927,3450.1,3449.7,4.98619]
[1719914517285,0.54425927,3450.1,3450.0,0.05350347]
[1719914517605,0.54425927,3450.1,3449.7,2.0874]
[1719914517606,2.89869,3449.9,3449.7,2.0874]
[1719914517805,0.54425927,3449.8,3449.7,2.0874]
[1719914518123,0.54425927,3449.8,3449.1,2.0874]
[1719914518124,2.8988,3449.7,3449.1,2.0874]
[1719914518304,0.54425927,3449.6,3449.1,2.0874]
[1719914518878,2.89897,3449.5,3449.1,2.0874]
[1719914519095,5.79802,3449.5,3449.1,2.0874]
[1719914519811,0.54471319,3449.4,3449.1,2.0874]
[1719914519972,2.89906,3449.4,3449.1,2.49187124]
[1719914521507,2.89897,3449.5,3449.1,2.0874]
[1719914521709,2.89897,3449.5,3448.9,3.824]
[1719914521710,2.89939,3449.0,3448.3,2.0874]
[1719914522008,2.89939,3449.0,3448.4,0.824]
[1719914522215,0.54459806,3448.9,3448.4,0.824]
[1719914522416,5.79886,3449.0,3448.4,0.824]
[1719914522612,3.44407661,3448.9,3448.4,0.824]
[1719914522907,2.89948,3448.9,3448.5,0.29114]
[1719914523278,2.89958,3448.8,3448.3,2.0874]
[1719914523616,2.89966,3448.7,3448.6,0.0500333]
[1719914523784,2.89966,3448.7,3448.3,2.0874]
[1719914524409,2.89966,3448.7,3448.4,0.05016467]
[1719914524913,2.89966,3448.7,3448.5,0.05016467]
[1719914525114,2.89966,3448.7,3448.4,0.29114]
[1719914525418,2.89966,3448.7,3448.6,0.05019542]
[1719914525580,2.89966,3448.7,3448.4,1.11514]
[1719914525786,2.89966,3448.7,3448.6,0.05019542]
[1719914525981,2.89966,3448.7,3448.4,0.29114]
[1719914526179,2.89966,3448.7,3448.6,0.05019542]
[1719914526412,2.89966,3448.7,3448.4,0.29114]
[1719914526577,2.89966,3448.7,3448.6,0.05019542]
[1719914526782,2.89966,3448.7,3448.4,0.29114]
[1719914527415,2.89966,3448.7,3448.5,0.05019542]
[1719914528384,2.89972,3448.6,3448.5,0.05019542]
[1719914528693,2.89972,3448.6,3448.5,0.04884366]
[1719914529014,2.89972,3448.6,3448.3,2.0874]
[1719914529215,2.89972,3448.6,3448.5,0.04884366]
[1719914529415,2.89972,3448.6,3448.3,2.0874]
[1719914529708,2.89972,3448.6,3448.5,0.04884366]
[1719914529909,2.89972,3448.6,3448.3,2.0874]
[1719914530083,2.89972,3448.6,3448.4,0.04884366]
[1719914530478,2.89972,3448.6,3448.5,0.04884366]
[1719914530914,2.89981,3448.5,3448.3,2.0874]
[1719914532585,2.8999,3448.4,3448.0,2.0874]
[1719914532787,2.90004,3448.3,3448.0,2.0874]
[1719914533993,2.4107,3448.3,3448.0,2.0874]
[1719914534426,2.8999,3448.4,3448.0,2.0874]
[1719914535419,2.90011,3448.2,3448.0,2.0874]
[1719914535722,5.79986,3448.4,3448.1,0.29114]
[1719914536392,2.8999,3448.4,3448.1,0.29114]
[1719914538867,2.89999,3448.3,3448.2,0.04900863]
[1719914544226,2.89999,3448.3,3448.2,0.04493817]
[1719914546235,2.89989,3448.4,3448.2,0.04493817]
[1719914546815,2.89989,3448.4,3448.0,2.0874]
[1719914546999,2.89989,3448.4,3448.3,0.04887295]
[1719914547205,2.89989,3448.4,3448.0,2.0874]
[1719914547540,2.89989,3448.4,3448.1,0.04887295]
[1719914564258,5.79985,3448.4,3448.1,0.04887295]
[1719914565021,2.89989,3448.4,3448.1,0.04887295]
[1719914565637,5.79986,3448.4,3448.1,0.04887295]
[1719914565832,2.89999,3448.3,3448.1,0.04887295]
[1719914572522,2.90006,3448.2,3447.5,2.0874]
[1719914572728,3.72427,3448.0,3447.5,2.0874]
[1719914572922,0.56366172,3447.9,3447.5,2.0874]
[1719914573148,0.56366172,3447.9,3447.2,2.0874]
[1719914573344,0.56366172,3447.9,3447.2,5.67854]
[1719914574153,2.90042,3447.8,3447.2,5.67854]
[1719914574325,0.56366172,3447.7,3447.2,5.67854]
[1719914574529,2.90042,3447.8,3447.2,5.67854]
[1719914581743,5.33602,3447.8,3447.2,3.59114]
[1719914581974,5.33602,3447.8,3447.3,3.47035743]
[1719914582148,5.33602,3447.8,3447.3,0.47035743]
[1719914583148,2.90048,3447.7,3447.3,0.47035743]
[1719914583352,3.72464,3447.6,3447.0,3.0]
[1719914583553,2.9007,3447.5,3447.4,0.04756873]
[1719914583750,2.9007,3447.5,3446.8,5.0874]
[1719914583952,2.9007,3447.5,3447.4,0.04771976]
[1719914584180,2.9007,3447.5,3446.8,2.0874]
[1719914584484,3.72464,3447.6,3446.6,0.824]
[1719914584485,2.3072,3447.3,3446.6,2.0874]
[1719914584661,2.3072,3447.3,3446.6,5.8128]
[1719914584865,2.89986,3448.5,3447.0,2.90106]
[1719914584866,2.90033,3447.9,3447.0,2.90106]
[1719914585066,2.90033,3447.9,3447.1,5.87033706]
[1719914585067,0.21068034,3447.8,3447.1,5.87033706]
[1719914585371,2.90033,3447.9,3447.1,5.87033706]
[1719914586179,2.90033,3447.9,3447.1,8.77125706]
[1719914586782,2.90033,3447.9,3447.2,2.90089]
[1719914586973,2.90033,3447.9,3447.3,0.87712171]
[1719914588961,2.90033,3447.9,3447.4,0.05800695]
[1719914589896,2.87033,3447.9,3447.3,0.87712171]
[1719914590100,2.87033,3447.9,3447.1,4.98832]
[1719914591007,8.10759,3448.1,3447.1,4.98832]
[1719914591183,8.10759,3448.1,3447.2,2.95887781]
[1719914591184,6.03138,3448.1,3447.2,2.95887781]
[1719914591390,2.90027,3448.0,3447.3,0.05800782]
[1719914591584,2.90027,3448.0,3447.3,0.9351276]
[1719914593893,2.90027,3448.0,3447.3,0.05800782]
[1719914594092,2.90027,3448.0,3447.2,2.90087]
[1719914594792,0.824,3447.9,3447.2,2.90087]
[1719914598492,0.824,3447.9,3447.3,0.04778969]
[1719914599817,2.3072,3448.1,3447.4,2.90071]
[1719914600018,0.824,3448.3,3447.5,5.57295997]
[1719914600201,0.824,3448.3,3447.6,0.05800498]
[1719914600403,0.824,3448.3,3447.6,0.10581426]
[1719914600612,0.824,3448.3,3447.6,1.05095317]
[1719914601195,3.72402,3448.3,3447.6,1.05095317]
[1719914601722,3.2854,3448.5,3447.8,2.90039]
[1719914601900,3.2854,3448.5,3447.9,0.04780648]
[1719914602523,0.824,3448.3,3447.9,0.04780648]
[1719914605506,2.89996,3448.4,3447.5,8.47350997]
[1719914605708,0.824,3448.3,3447.6,0.04780648]
[1719914606131,0.824,3448.3,3447.6,2.94835648]
[1719914606324,0.824,3448.3,3447.6,3.88290213]
[1719914612220,3.72398,3448.3,3447.6,3.88290213]
[1719914613765,3.72398,3448.3,3447.6,0.98235213]
[1719914614254,0.824,3448.1,3447.6,0.04780648]
[1719914614829,3.2336,3448.1,3447.6,0.04780648]
[1719914615348,3.2336,3448.1,3447.4,2.90067]
[1719914615534,3.2336,3448.1,3447.5,0.04766101]
[1719914616327,0.824,3447.9,3447.5,0.04766101]
[1719914616521,0.824,3447.9,3447.3,2.0874]
[1719914616720,0.824,3447.9,3447.4,0.04766101]
[1719914617838,6.13375,3448.1,3447.4,0.04766101]
[1719914618040,0.21071217,3448.0,3447.4,0.04766101]
[1719914618224,6.13375,3448.1,3447.4,0.04766101]
[1719914618426,0.21071564,3448.0,3447.4,0.04766101]
[1719914618664,0.21071564,3447.9,3447.4,0.93129134]
[1719914618825,6.13375,3448.1,3447.4,0.93129134]
[1719914619028,0.21071561,3448.0,3447.4,0.93129134]
[1719914619351,0.21071561,3447.9,3447.4,0.93129134]
[1719914619551,6.13375,3448.1,3447.4,0.93129134]
[1719914619752,0.21071549,3448.0,3447.4,0.93129134]
[1719914619969,0.21071549,3447.9,3447.5,0.88203213]
[1719914620168,6.13375,3448.1,3447.5,0.88203213]
[1719914620337,0.21071554,3448.0,3447.6,0.04766101]
[1719914620659,0.21071554,3447.9,3447.6,0.04766101]
[1719914620916,6.13375,3448.1,3447.6,0.04766101]
[1719914621055,0.21071582,3448.0,3447.6,0.04766101]
[1719914621264,0.21071582,3447.9,3447.3,4.9882]
[1719914621463,6.13375,3448.1,3447.7,0.04766101]
[1719914621633,0.21071581,3448.0,3447.3,4.9882]
[1719914621971,5.85512581,3448.1,3447.3,4.9882]
[1719914622151,0.21071579,3448.0,3447.4,0.04770857]
[1719914622369,5.85512581,3448.1,3447.4,0.04770857]
[1719914623026,2.90023,3448.0,3447.4,0.04770857]
[1719914623933,0.824,3447.9,3447.4,0.04770857]
[1719914624525,2.90026,3448.0,3447.4,0.04770857]
[1719914624759,5.80056,3448.0,3447.4,0.04770857]
[1719914628473,2.90034,3447.9,3447.4,0.04770857]
[1719914628672,3.72434,3447.9,3447.4,0.04770857]
[1719914628973,3.72434,3447.9,3447.5,0.04770857]
[1719914629135,3.72434,3447.9,3447.2,2.9009]
[1719914629334,3.72434,3447.9,3447.3,1.16450157]
[1719914633140,0.824,3447.7,3447.3,0.04770857]
[1719914633342,0.824,3447.7,3447.0,5.366]
[1719914633581,2.90026,3448.0,3447.1,2.94870817]
[1719914633773,2.90026,3448.0,3447.3,2.3305]
[1719914633944,2.90031,3447.9,3447.4,2.94082082]
[1719914634141,2.90013,3448.2,3447.5,0.10573773]
[1719914634381,2.90013,3448.2,3447.6,2.2838]
[1719914634950,2.90013,3448.2,3447.7,0.04772817]
[1719914635179,2.90013,3448.2,3447.7,0.43011403]
[1719914635375,2.90016,3448.1,3447.7,0.43011403]
[1719914635558,2.90016,3448.1,3447.7,0.04772817]
[1719914637097,0.21081247,3448.0,3447.7,0.04772817]
[1719914637405,0.21081247,3447.9,3447.7,0.04772817]
[1719914637563,2.90016,3448.1,3447.7,0.04772817]
[1719914637903,0.21082727,3448.0,3447.7,0.04772817]
[1719914638099,0.21082727,3447.9,3447.7,0.04772817]
[1719914638308,2.90016,3448.1,3447.7,0.04772817]
[1719914638605,0.21082714,3448.0,3447.7,0.04772817]
[1719914638783,0.21082714,3447.9,3447.7,0.04772817]
[1719914638983,2.90016,3448.1,3447.7,0.04772817]
[1719914639184,0.21082712,3448.0,3447.7,0.04772817]
[1719914639381,2.90016,3448.1,3447.7,0.04772817]
[1719914639382,0.21082712,3447.9,3447.7,0.04772817]
[1719914639593,2.90016,3448.1,3447.7,0.04772817]
[1719914639794,0.210874,3448.0,3447.7,0.04772817]
[1719914640001,2.90016,3448.1,3447.7,0.04772817]
[1719914640002,0.210874,3447.9,3447.7,0.04772817]
[1719914640195,2.90016,3448.1,3447.7,0.04772817]
[1719914640394,0.21087807,3448.0,3447.7,0.04772817]
[1719914640700,0.21087807,3447.9,3447.7,0.04772817]
[1719914640902,3.72416,3448.1,3447.7,0.04772817]
[1719914641078,0.21087172,3448.0,3447.7,0.04772817]
[1719914641276,0.21087172,3447.9,3447.7,0.04772817]
[1719914641477,3.72416,3448.1,3447.7,0.04772817]
[1719914641797,0.21087285,3448.0,3447.7,0.04772817]
[1719914641995,3.72416,3448.1,3447.7,0.04772817]
[1719914641996,0.21087285,3447.9,3447.7,0.04772817]
[1719914642195,3.72416,3448.1,3447.7,0.04772817]
[1719914642502,0.21087223,3448.0,3447.7,0.04772817]
[1719914642709,0.21087223,3447.9,3447.7,0.04772817]
[1719914642889,3.72416,3448.1,3447.7,0.04772817]
[1719914643217,3.11114157,3448.0,3447.7,0.04772817]
[1719914643396,0.21090157,3447.9,3447.3,2.293]
[1719914643608,2.90024,3448.0,3447.8,0.04772817]
[1719914643919,0.21090057,3447.9,3447.3,2.293]
[1719914644117,2.90024,3448.0,3447.9,0.04771417]
[1719914644309,3.11114061,3448.0,3447.3,2.293]
[1719914644623,0.21090061,3447.9,3447.3,2.293]
[1719914644781,2.90024,3448.0,3447.4,0.04771417]
[1719914644987,3.93520606,3447.9,3447.4,0.04771417]
[1719914645188,0.21089606,3447.8,3447.4,0.04771417]
[1719914645491,1.03489606,3447.7,3447.4,0.04771417]
[1719914645697,0.21089606,3447.6,3447.4,0.04771417]
[1719914645893,0.824,3447.5,3447.0,2.366]
[1719914646495,3.72465,3447.5,3447.0,2.366]
[1719914646892,3.72465,3447.5,3446.9,3.0]
[1719914647584,3.72465,3447.5,3446.8,2.366]
[1719914649415,2.90065,3447.5,3446.8,3.59490721]
[1719914649613,2.90065,3447.5,3446.9,3.0]
[1719914650987,2.90065,3447.5,3446.9,2.97]
[1719914652321,2.90065,3447.5,3446.8,2.366]
[1719914652524,1.03487304,3447.4,3446.6,2.2812]
[1719914652723,3.11169304,3447.3,3446.6,3.20165521]
[1719914652923,2.90082,3447.3,3446.6,3.20165521]
[1719914653228,2.90082,3447.3,3446.7,3.0]
[1719914653390,2.90098,3447.2,3446.7,3.0]
[1719914653595,2.90098,3447.2,3446.7,2.2856]
[1719914653826,2.90098,3447.2,3446.7,5.2856]
[1719914654029,2.90099,3447.1,3446.7,2.2856]
[1719914654633,2.90099,3447.1,3446.7,5.2856]
[1719914657435,2.90099,3447.1,3446.7,2.2856]
[1719914657729,2.90099,3447.1,3446.5,3.0]
[1719914658523,2.90099,3447.1,3446.6,0.04083865]
[1719914660608,2.90099,3447.1,3446.4,2.3643]
[1719914661010,2.90099,3447.1,3446.7,0.04083865]
[1719914661349,2.90099,3447.1,3446.5,0.04083865]
[1719914661501,2.90099,3447.1,3446.4,2.3643]
[1719914661502,2.9011,3447.0,3446.4,2.3643]
[1719914661702,2.9011,3447.0,3446.6,0.04083865]
[1719914661926,2.9011,3447.0,3446.3,3.824]
[1719914662119,2.9011,3447.0,3446.7,0.04083865]
[1719914662315,2.9011,3447.0,3446.3,5.05295652]
[1719914662521,2.9011,3447.0,3446.8,0.04083865]
[1719914662722,2.9011,3447.0,3446.3,3.0]
[1719914662922,2.9011,3447.0,3446.9,0.04083865]
[1719914663212,2.90116,3446.9,3446.3,3.0]
[1719914663540,2.90116,3446.9,3446.4,0.04083865]
[1719914663744,2.4706,3446.8,3446.4,0.04083865]
[1719914664134,2.4706,3446.8,3446.2,5.366]
[1719914664332,2.4706,3446.8,3446.5,0.04083865]
[1719914664532,2.4706,3446.8,3446.2,5.366]
[1719914664831,2.4706,3446.8,3446.6,0.04083865]
[1719914665143,2.4706,3446.8,3446.7,0.04083865]
[1719914665342,5.37184,3446.8,3446.7,0.04083865]
[1719914665945,5.37184,3446.8,3446.2,3.0]
[1719914666122,5.37184,3446.8,3446.7,0.04083865]
[1719914666323,5.37184,3446.8,3446.2,3.0]
[1719914666324,2.9014,3446.7,3446.0,5.2691]
[1719914666719,2.9014,3446.7,3446.0,3.0]
[1719914666923,2.9014,3446.7,3445.8,3.0]
[1719914666924,2.9015,3446.5,3445.8,3.0]
[1719914667117,2.9015,3446.5,3445.8,5.90208]
[1719914667349,2.9015,3446.5,3445.9,1.189731]
[1719914669549,2.90141,3446.6,3445.9,1.189731]
[1719914670924,2.90141,3446.6,3445.9,4.091721]
[1719914671138,2.90141,3446.6,3446.0,3.0]
[1719914671311,3.2946,3446.8,3446.0,3.0]
[1719914671312,6.19591,3446.8,3446.0,3.0]
[1719914671515,2.90135,3446.7,3446.0,3.0]
[1719914671748,2.90135,3446.7,3446.0,3.44568833]
[1719914672336,3.2946,3446.8,3446.0,6.40560013]
[1719914672552,6.19585,3446.8,3446.1,2.366]
[1719914673142,5.37185,3446.8,3446.1,2.366]
[1719914673342,2.4706,3446.8,3446.1,2.366]
[1719914673559,2.90102,3447.1,3446.2,0.03996395]
[1719914673721,0.824,3447.0,3446.2,0.03996395]
[1719914674315,0.824,3447.0,3446.2,2.94169395]
[1719914674520,0.824,3447.0,3446.2,2.99972268]
[1719914674716,2.448,3447.1,3446.3,0.05802873]
[1719914674951,0.824,3447.2,3446.5,2.366]
[1719914675352,0.824,3447.2,3446.6,0.03994995]
[1719914676647,5.33506,3447.3,3446.6,0.03994995]
[1719914676648,2.4342,3447.3,3446.6,0.03994995]
[1719914676820,0.824,3447.2,3446.6,0.03994995]
[1719914678156,0.824,3447.2,3446.6,2.94133995]
[1719914678660,0.824,3447.0,3446.6,0.03994995]
[1719914678860,2.2627,3447.6,3446.6,3.53011813]
[1719914679058,2.2627,3447.6,3446.9,2.90114]
[1719914679261,2.2627,3447.9,3447.0,5.31678642]
[1719914679554,0.824,3447.8,3447.1,0.03991916]
[1719914680139,0.824,3447.6,3447.1,0.03991916]
[1719914680527,0.824,3447.6,3447.0,5.25877]
[1719914680849,0.824,3447.6,3447.0,5.82948027]
[1719914681069,0.824,3447.6,3447.1,0.03988557]
[1719914687889,2.3949,3447.5,3447.1,0.03988557]
[1719914688192,2.3949,3447.5,3446.8,2.366]
[1719914688692,3.2189,3447.5,3446.9,0.03968686]
[1719914688869,0.824,3447.5,3446.9,0.03968686]
[1719914689685,0.824,3447.5,3446.9,2.99884271]
[1719914689891,0.824,3447.5,3447.0,0.82661627]
[1719914690185,2.90035,3447.9,3447.0,0.82661627]
[1719914690368,0.824,3447.7,3447.2,2.366]
[1719914690969,0.824,3447.7,3447.3,0.03968686]
[1719914700204,2.90035,3447.9,3447.3,0.03968686]
[1719914700406,2.35943598,3447.8,3447.3,0.03968686]
[1719914700593,0.21082487,3447.7,3447.3,0.03968686]
[1719914701391,0.824,3447.8,3447.3,0.03968686]
[1719914701898,0.21082209,3447.7,3447.3,0.03968686]
[1719914702200,0.824,3447.8,3447.3,0.03968686]
[1719914704505,12.70532,3448.2,3447.3,3.76124455]
[1719914704694,2.35946761,3448.1,3447.3,3.76124455]
[1719914704887,0.2108453,3448.0,3447.3,3.76124455]
[1719914705207,12.70532,3448.2,3447.3,3.76124455]
[1719914705208,13.52932,3448.2,3447.3,3.76124455]
[1719914705407,0.21076533,3448.1,3447.3,3.76124455]
[1719914705596,1.32404271,3448.1,3447.3,3.76124455]
[1719914705794,13.52932,3448.2,3447.3,3.76124455]
[1719914706115,0.21073659,3448.1,3447.3,3.76124455]
[1719914706327,1.32403726,3448.1,3447.4,3.88594546]
[1719914706539,0.824,3448.1,3447.5,0.0382576]
[1719914707796,0.824,3448.1,3447.6,2.3542]
[1719914708193,0.824,3448.1,3447.7,0.03822682]
[1719914709325,2.2533,3448.4,3447.7,0.03822682]
[1719914709512,2.35886776,3448.3,3447.6,5.25476]
[1719914709721,2.35886776,3448.3,3447.7,0.03822682]
[1719914709722,0.21075972,3448.2,3447.7,0.03822682]
[1719914710098,0.824,3448.4,3447.7,2.93868682]
[1719914710308,0.21076684,3448.3,3447.7,3.90342015]
[1719914710509,0.824,3448.4,3447.7,3.90342015]
[1719914710699,0.21076823,3448.3,3447.7,3.90342015]
[1719914710908,0.824,3448.4,3447.7,3.90342015]
[1719914711193,2.89982,3448.5,3447.7,3.90342015]
[1719914711416,0.824,3448.3,3447.7,3.90342015]
[1719914711697,0.824,3448.3,3447.8,0.97880666]
[1719914711897,0.824,3448.3,3447.9,0.03820723]
[1719914712530,0.824,3448.3,3447.7,2.90046]
[1719914712750,2.89982,3448.5,3447.8,0.03820723]
[1719914712908,2.14814811,3448.4,3447.8,0.03820723]
[1719914713265,0.824,3448.4,3447.8,0.03820723]
[1719914713749,0.824,3448.4,3447.9,2.366]
[1719914714027,0.824,3448.4,3448.0,0.03805613]
[1719914718657,1.32452171,3448.3,3448.0,0.03805613]
[1719914718970,0.824,3448.4,3448.0,0.03805613]
[1719914719253,0.824,3448.4,3447.7,2.366]
[1719914719461,1.32452029,3448.3,3447.7,3.04383919]
[1719914719758,0.824,3448.4,3447.8,0.03805613]
[1719914719916,1.32452045,3448.3,3447.8,0.03805613]
[1719914720113,3.72394,3448.4,3447.8,0.03805613]
[1719914720327,1.32452666,3448.3,3447.8,0.03805613]
[1719914720563,3.72394,3448.4,3447.8,0.03805613]
[1719914720732,0.824,3448.2,3447.8,0.03805613]
[1719914720931,0.824,3448.2,3447.7,2.366]
[1719914721138,0.824,3448.2,3447.8,0.03805613]
[1719914724333,1.32454829,3448.1,3447.8,0.03805613]
[1719914724566,1.32454829,3448.0,3447.4,2.366]
[1719914724743,0.824,3448.2,3447.5,0.86348039]
[1719914724923,1.32455811,3448.1,3447.5,0.86348039]
[1719914725126,1.32455811,3448.0,3447.5,0.86348039]
[1719914725473,0.824,3448.2,3447.5,0.86348039]
[1719914725635,1.32455092,3448.1,3447.5,0.86348039]
[1719914725840,1.32455092,3448.0,3447.5,0.86348039]
[1719914726040,0.824,3448.2,3447.5,0.86348039]
[1719914726259,1.53538079,3448.1,3447.5,0.86348039]
[1719914726475,1.53538079,3448.0,3447.5,0.86348039]
[1719914726669,0.824,3448.2,3447.5,0.86348039]
[1719914726881,0.21083113,3448.1,3447.5,0.86348039]
[1719914727199,1.53538192,3448.0,3447.5,0.86348039]
[1719914727362,0.824,3448.2,3447.5,0.86348039]
[1719914727691,1.53538,3448.1,3447.5,0.86348039]
[1719914727844,2.35938,3448.0,3447.5,0.86348039]
[1719914728044,1.53538,3447.9,3447.5,0.86348039]
[1719914728273,0.21083137,3447.8,3447.5,0.86348039]
[1719914728472,0.824,3448.0,3447.5,0.86348039]
[1719914728687,1.53534776,3447.9,3447.5,0.03679039]
[1719914728842,1.53534776,3447.8,3447.5,0.03679039]
[1719914729048,0.824,3448.0,3447.5,0.03679039]
[1719914729367,1.535344,3447.9,3447.5,0.03679039]
[1719914729673,0.21081686,3447.8,3447.5,0.03679039]
[1719914729900,1.32452714,3447.9,3447.5,0.03679039]
[1719914730096,0.21081658,3447.8,3447.5,0.03679039]
[1719914730244,1.32452714,3447.9,3447.5,0.03679039]
[1719914730584,0.21081665,3447.8,3447.5,0.03679039]
[1719914730773,1.32452714,3447.9,3447.5,0.03679039]
[1719914731092,0.21081549,3447.8,3447.2,2.366]
[1719914731312,0.21081549,3447.7,3447.2,3.275108]
[1719914731501,3.72424,3448.0,3447.2,3.275108]
[1719914731815,0.21081356,3447.9,3447.3,0.03685754]
[1719914732110,0.21081356,3447.8,3447.3,0.09116424]
[1719914732417,0.21081356,3447.7,3447.3,0.09116424]
[1719914732589,3.72424,3448.0,3447.4,0.33662722]
[1719914732778,0.21081357,3447.9,3447.3,0.09116424]
[1719914732977,0.21081357,3447.8,3447.3,0.09116424]
[1719914733220,0.21081357,3447.7,3447.3,0.09116424]
[1719914733374,3.72424,3448.0,3447.3,0.09116424]
[1719914733574,0.21081355,3447.9,3447.3,0.72779146]
[1719914733792,0.21081355,3447.8,3447.3,0.72779146]
[1719914733992,0.21081355,3447.7,3447.3,0.72779146]
[1719914734193,3.72424,3448.0,3447.3,0.72779146]
[1719914734423,0.21081368,3447.9,3447.3,0.72779146]
[1719914734601,3.72424,3448.0,3447.3,0.72779146]
[1719914734808,0.21081359,3447.9,3447.3,0.72779146]
[1719914741199,1.32462437,3447.8,3447.3,0.72779146]
[1719914741406,1.53543796,3447.7,3447.4,0.40028995]
[1719914741733,0.21081359,3447.6,3447.5,0.09120902]
[1719914742201,0.21081359,3447.9,3447.5,0.09120902]
[1719914742404,1.53552874,3447.8,3447.5,0.09120902]
[1719914742609,1.53552874,3447.7,3447.5,0.09120902]
[1719914742823,0.21081359,3447.6,3447.2,2.366]
[1719914743146,2.90031,3447.9,3447.3,0.5366]
[1719914743445,1.53566672,3447.8,3447.3,0.5366]
[1719914743653,1.53566672,3447.7,3447.3,0.5366]
[1719914743859,2.90031,3447.9,3447.3,0.5366]
[1719914743860,0.21086577,3447.6,3447.3,0.5366]
[1719914744008,2.90031,3447.9,3447.3,0.5366]
[1719914744209,0.21086552,3447.8,3447.3,0.5366]
[1719914744443,0.21086552,3447.7,3447.3,0.5366]
[1719914744843,0.21086552,3447.6,3447.3,0.5366]
[1719914745028,0.824,3447.8,3447.3,0.5366]
[1719914745351,1.53594807,3447.7,3447.2,2.366]
[1719914745522,0.21089735,3447.6,3447.2,2.366]
[1719914745725,0.824,3447.8,3447.2,2.366]
[1719914745908,1.53578418,3447.7,3447.2,2.366]
[1719914746109,0.21087652,3447.6,3447.2,2.366]
[1719914746331,0.824,3447.8,3447.3,0.2366]
[1719914746534,1.53567815,3447.7,3447.3,0.2366]
[1719914746733,0.21086304,3447.6,3447.3,0.2366]
[1719914746937,0.824,3447.8,3447.3,0.2366]
[1719914747153,1.53557125,3447.7,3447.2,2.366]
[1719914747338,1.53557125,3447.6,3447.2,2.366]
[1719914747540,3.72446,3447.8,3447.2,2.366]
[1719914747857,1.53560955,3447.7,3447.2,2.366]
[1719914748054,1.53560955,3447.6,3447.2,2.366]
[1719914748215,3.72446,3447.8,3447.2,2.366]
[1719914748405,1.53558256,3447.7,3447.2,2.366]
[1719914748610,0.21084616,3447.6,3447.3,0.08815472]
[1719914748839,3.72446,3447.8,3447.3,0.08815472]
[1719914749045,1.53555763,3447.7,3447.3,0.08815472]
[1719914749246,0.2108436,3447.6,3447.3,0.08815472]
[1719914749537,3.72446,3447.8,3447.3,0.08815472]
[1719914749843,1.53555762,3447.7,3447.3,0.08815472]
[1719914750144,0.2108431,3447.6,3447.3,0.08815472]
[1719914750325,3.72446,3447.8,3447.3,0.08815472]
[1719914750524,1.53556304,3447.7,3447.3,0.08815472]
[1719914750731,3.72446,3447.8,3447.3,0.08815472]
[1719914750732,0.21084374,3447.6,3447.3,0.08815472]
[1719914750935,3.72446,3447.8,3447.3,0.08815472]
[1719914751134,1.53556206,3447.7,3447.3,0.08815472]
[1719914751333,1.53556821,3447.6,3447.3,0.08815472]
[1719914751538,3.72446,3447.8,3447.3,0.08815472]
[1719914751739,1.53556349,3447.7,3447.3,0.08815472]
[1719914751928,0.21084375,3447.6,3447.3,0.08815472]
[1719914752129,3.72446,3447.8,3447.3,0.08815472]
[1719914752462,1.5355584,3447.7,3447.3,0.08815472]
[1719914752652,0.2108435,3447.6,3447.3,0.08815472]
[1719914752952,3.72446,3447.8,3447.3,0.08815472]
[1719914753154,1.53555447,3447.7,3447.3,0.08815472]
[1719914753451,0.21084359,3447.6,3447.3,0.08815472]
[1719914753751,0.824,3447.6,3447.3,0.08815472]
[1719914757574,2.90048,3447.7,3447.3,0.08815472]
[1719914757575,0.824,3447.4,3447.3,0.08815472]
[1719914757762,0.21083877,3447.4,3447.3,0.08815472]
[1719914757961,1.53567821,3447.4,3447.2,2.366]
[1719914758276,1.53567821,3447.3,3447.2,2.366]
[1719914758485,0.21083877,3447.3,3447.2,2.366]
[1719914759856,0.21083877,3447.3,3446.7,2.366]
[1719914760067,3.72458,3447.6,3446.8,0.909139]
[1719914760267,1.53582931,3447.5,3446.8,3.909139]
[1719914760578,0.21086231,3447.4,3446.8,3.909139]
[1719914760779,2.35990475,3447.4,3446.8,3.909139]
[1719914760981,0.21086231,3447.3,3446.8,3.909139]
[1719914761674,0.21086231,3447.3,3446.8,3.0]
[1719914761979,0.21086231,3447.3,3446.7,2.366]
[1719914762492,0.824,3447.0,3446.6,3.0]
[1719914762667,0.824,3447.0,3446.5,2.366]
[1719914763082,0.21086357,3446.9,3446.5,2.366]